Cogmind - Beta 15 @@@ ROGUE MODE // 2025.08.28 @ 19:06:22 Player: JuustuToug Result: Core destroyed Performance ------------- Evolutions (8) 4000 Regions Visited (17) 3400 Robots Destroyed (38) 190 Value Destroyed (1533) 1533 Prototype IDs (27) 540 Alien Tech Used (10) 2000 Bonus (2565) 2565 TOTAL SCORE: 14228 Bonus ------- High Alert Combat Kills 13 Follower Combat Kills 602 Entered DSFs 500 Scanned by Researcher 1000 Pursued by Intercept 500 Friendly Fire -50 Cogmind --------- Core Integrity 0/1450 Matter 222/300 Energy 100/100 System Corruption 9% +Membrane Temperature Cool (0) +ITN Movement Core (50) Location -2/Section 7 Parts ------- > --- POWER (2) -------- (None) > --- PROPULSION (8) --- (None) > --- UTILITY (11) ----- Advanced Visual Processing Unit Advanced Terrain Scanner Improved Hacking Suite Experimental System Shield Core Physics Calibrator Spacefold Activator > --- WEAPON (2) ------- (None) > --- INVENTORY (5) ---- Light Quantum Reactor Large Storage Unit Subatomic Replicator Enhanced Nova Cannon Gamma Bomb Array Peak State ------------ > --- POWER ------------ Light Quantum Reactor Matter Drive > --- PROPULSION ------- Improved Linear Gravjet Combat Antigrav System Combat Linear Gravjet Combat Linear Gravjet Q-thruster Impulse Thruster Array > --- UTILITY ---------- Advanced Power Amplifier Medium Storage Unit Advanced Gravity Neutralizer Advanced Sensor Array Advanced Signal Interpreter ECM Suite Advanced Cloaking Device Hacking Suite Improved Hacking Suite Experimental System Shield Experimental System Shield > --- WEAPON ----------- Sigix Broadsword > --- INVENTORY -------- Quantum Reactor Improved Cloaking Device Improved Propulsion Shielding Improved Propulsion Shielding Subatomic Replicator Enhanced Nova Cannon Enhanced Nova Cannon Gamma Bomb Array [Rating: 174] Favorites ----------- Power Backup Power III Engine Backup Power III Power Core Micro Nuclear Core Reactor Quantum Reactor Propulsion Combat Linear Gravjet Leg Aluminum Leg Hover Unit Combat Linear Gravjet Flight Unit Nuclear Pulse Thruster Utility Experimental System Shield Device Improved Sensor Array Storage Medium Storage Unit Processor Advanced Signal Interpreter Hackware Experimental System Shield Protection Improved Propulsion Shielding Artifact Spacefold Activator Weapon Backup Laser III Energy Gun Backup Laser III Energy Cannon Enhanced Nova Cannon Ballistic Gun Assault Rifle Launcher Heavy Rocket Launcher Impact Weapon Mace Slashing Weapon Great Axe Piercing Weapon Enhanced Force Lance Build | -11 -10 -9 -9 -8 -7 -7 -7 -6 -6 -6 -5 -4 -3 -3 -2 -2 -2 ------- Run | Yrd Mat Mat Min Mat Fac Low Low Fac Was Fac Fac Fac Res DSF Res Qua Sec Slots Evolved 16 | . . 2 . 2 2 . . 2 . . 2 2 2 . 2 . . Power 1 | . . . . . . . . . . . . 1 . . . . . Propulsion 6 | . . 1 . 1 1 . . 1 . . . . 1 . 1 . . Utility 9 | . . 1 . 1 1 . . 1 . . 2 1 1 . 1 . . Weapon . | . . . . . . . . . . . . . . . . . . Parts Attached 141 | 6 2 10 . 11 11 4 . 4 3 11 8 4 6 6 25 17 13 Power 20 | 1 1 2 . 1 1 1 . 1 . 2 1 . 1 . 2 3 3 Engine 8 | 1 1 2 . 1 . . . 1 . . 1 . 1 . . . . Core 5 | . . . . . 1 1 . . . 1 . . . . . . 2 Reactor 7 | . . . . . . . . . . 1 . . . . 2 3 1 Propulsion 38 | 2 . 4 . 4 1 1 . . 1 2 1 1 4 2 8 3 4 Treads . | . . . . . . . . . . . . . . . . . . Leg 5 | 2 . 2 . . . . . . 1 . . . . . . . . Wheel . | . . . . . . . . . . . . . . . . . . Hover 21 | . . . . 4 1 1 . . . 1 . 1 4 2 5 2 . Flight 12 | . . 2 . . . . . . . 1 1 . . . 3 1 4 Utility 64 | 1 1 2 . 5 5 2 . 3 1 5 6 2 1 4 11 10 5 Device 25 | . 1 1 . 2 1 2 . 1 1 1 2 1 1 . 7 3 1 Storage 4 | 1 . . . . . . . . . . . . . . 1 . 2 Processor 14 | . . . . 2 2 . . 1 . 3 2 1 . . 1 2 . Hackware 13 | . . . . 1 1 . . 1 . 1 2 . . 4 2 1 . Protection 5 | . . 1 . . 1 . . . . . . . . . . 3 . Artifact 3 | . . . . . . . . . . . . . . . . 1 2 Weapon 19 | 2 . 2 . 1 4 . . . 1 2 . 1 . . 4 1 1 Energy Gun 2 | . . 1 . 1 . . . . . . . . . . . . . Energy Cannon 2 | . . . . . . . . . . . . 1 . . 1 . . Ballistic Gun 3 | 2 . 1 . . . . . . . . . . . . . . . Ballistic Cannon . | . . . . . . . . . . . . . . . . . . Launcher 3 | . . . . . 1 . . . 1 . . . . . 1 . . Special Weapon . | . . . . . . . . . . . . . . . . . . Impact Weapon 2 | . . . . . 1 . . . . . . . . . . . 1 Slashing Weapon 6 | . . . . . 2 . . . . 2 . . . . 1 1 . Piercing Weapon 1 | . . . . . . . . . . . . . . . 1 . . Special Melee Weapon . | . . . . . . . . . . . . . . . . . . Unidentified Prototypes 21 | . . 2 . . . . . . 2 . . 1 . 1 1 6 8 Parts Lost 71 | . 1 2 . . 6 2 1 3 . 2 3 9 . . 15 11 16 Power 9 | . 1 1 . . . . . . . . . 1 . . 4 2 . Propulsion 28 | . . . . . 4 1 . 2 . 2 2 2 . . 4 3 8 Utility 30 | . . . . . 1 1 1 1 . . . 6 . . 7 5 8 Weapon 4 | . . 1 . . 1 . . . . . 1 . . . . 1 . Highest Loss Streak 10 | . 1 1 . . 3 1 1 2 . 1 3 8 . . 7 8 10 To Critical Strikes 1 | . . . . . . . . . . . . . . . . 1 . Average Backups 5 | 2 4 7 5 4 4 3 4 4 5 4 4 4 4 3 7 7 6 Power 1 | . 1 . . . 1 . 1 1 . 1 2 2 2 1 1 . . Propulsion . | 1 1 4 3 1 . . . . . . . . . . 1 . . Utility 1 | . . . 1 1 1 1 1 1 1 1 1 1 1 1 1 3 1 Weapon 2 | 1 1 2 1 1 2 2 2 2 2 1 1 1 1 1 2 2 3 Tool/Special . | . . . . . . . . . . . . . . . . . . Unused Backups 20 | 1 . 2 . 4 4 . . . 1 1 . . . . 5 . 2 Power 1 | . . 1 . . . . . . . . . . . . . . . Propulsion 6 | 1 . . . 3 . . . . . . . . . . 2 . . Utility 5 | . . . . 1 . . . . 1 1 . . . . 2 . . Weapon 6 | . . 1 . . 3 . . . . . . . . . 1 . 1 Tool/Special 2 | . . . . . 1 . . . . . . . . . . . 1 Average Slot Usage (%) 70 | . 98 82 66 89 86 60 45 51 54 75 69 57 32 63 71 70 62 Engine 3 | . 13 10 11 9 . . . 2 5 1 2 5 . . . . . Core 1 | . . . . . 5 4 . 1 . 2 . . . 4 1 . 2 Reactor 1 | . . . . . . . . . . 2 . . . 4 4 3 2 Leg 3 | . 28 24 . . . . . . 5 . . . . . . . . Hover 11 | . . . . 27 28 11 7 9 5 14 5 4 10 21 15 14 10 Flight 3 | . . . 22 6 . . . . . 5 9 4 . . 4 6 8 Device 10 | . 13 11 11 11 11 11 6 8 2 10 9 8 . 9 12 13 7 Storage 2 | . 14 10 . . . . . . . . . . . . 3 4 4 Processor 9 | . . . . 10 7 15 15 13 13 20 17 13 4 4 2 5 4 Hackware 10 | . . . . 6 10 7 7 7 6 6 17 21 14 18 22 14 9 Protection 1 | . . 2 . . 5 . . . . . . . . . . 2 5 Energy Gun 2 | . . 5 11 9 . . . . 12 5 . . . . . . . Ballistic Gun 3 | . 28 16 11 9 1 . . . . . . . . . . . . Slashing Weapon 2 | . . . . . 2 7 7 4 . 3 4 . . . 1 2 . Peak Build Rating 174 | 6 7 11 9 27 38 31 21 30 36 56 61 58 67 126 166 174 159 Average Rating 60 | 4 6 7 9 21 32 27 20 24 32 49 54 46 41 93 144 133 106 On Entrance 34 | . 6 7 9 9 27 21 21 18 16 29 43 38 16 67 126 91 77 Naked Turns . | . . . . . . . . . . . . . . . . . . Heaviest Build 62 | 13 14 16 8 13 27 12 5 14 8 25 12 6 27 27 57 62 57 Greatest Support 108 | 20 20 30 8 30 39 16 9 15 28 26 21 15 48 88 108 70 64 Greatest Overweight (x) 8 | 4 . . . . . 1 . 2 . 1 . 1 . . 1 . 8 Average Overweight (x) . | . . . . . . . . . . . . . . . . . . Largest Inventory Capacity 15 | 8 8 8 5 5 5 5 5 5 5 5 5 5 5 5 10 10 15 Average Capacity 6 | 7 8 7 5 5 5 5 5 5 5 5 5 5 5 5 9 10 10 Most Carried 10 | 5 8 8 5 5 5 5 4 5 5 5 5 5 5 5 10 10 10 Average Carried 5 | 2 4 7 5 4 4 3 4 4 4 4 4 4 4 4 8 8 6 Final Capacity 10 | 8 8 5 5 5 5 5 5 5 5 5 5 5 5 5 10 10 5 Final Carried 9 | 2 8 5 5 5 5 4 4 5 5 5 4 5 3 5 9 8 5 Class Distribution -------------------- 46% | Mutant 19% | Hacker-Mutant 12% | Wizard-Mutant 7% | Scavenger-Mutant 7% | Hacker-Gladiator 3% | Hacker-Sprinter Dominant Class ---------------- Mutant | -10/Materials Mutant | -9/Materials Mutant | -9/Mines Scavenger-Mutant | -8/Materials Mutant | -7/Factory Scavenger-Mutant | -7/Lower Caves Mutant | -7/Lower Caves Mutant | -6/Factory Mutant | -6/Waste Mutant | -6/Factory Hacker-Gladiator | -5/Factory Hacker-Mutant | -4/Factory Hacker-Mutant | -3/Research Hacker-Mutant | -3/DSF Wizard-Mutant | -2/Research Hacker-Mutant | -2/Quarantine Hacker-Sprinter | -2/Section 7 Resources | -11 -10 -9 -9 -8 -7 -7 -7 -6 -6 -6 -5 -4 -3 -3 -2 -2 -2 ----------- Run | Yrd Mat Mat Min Mat Fac Low Low Fac Was Fac Fac Fac Res DSF Res Qua Sec Matter Collected 1966 | 253 94 120 . 23 124 164 . . 70 110 26 22 . . 397 325 238 Remotely 22 | . . . . . . . . . . . . 22 . . . . . Salvage Created 2586 | . 146 162 . 23 78 195 . . 836 184 46 . . . 383 309 224 Parts 114 | . 13 11 . 6 7 6 . . 13 6 5 . . . 24 10 13 Haulers Intercepted 1 | . . . . . . . . . . 1 . . . . . . . Recyclers Shooed . | . . . . . . . . . . . . . . . . . . Parts Field Recycled . | . . . . . . . . . . . . . . . . . . Retrieved Matter . | . . . . . . . . . . . . . . . . . . Parts Self-Destructed 3 | . . . . . . 3 . . . . . . . . . . . Prevented . | . . . . . . . . . . . . . . . . . . Kills | -11 -10 -9 -9 -8 -7 -7 -7 -6 -6 -6 -5 -4 -3 -3 -2 -2 -2 ------- Run | Yrd Mat Mat Min Mat Fac Low Low Fac Was Fac Fac Fac Res DSF Res Qua Sec Combat Hostiles Destroyed 22 | . 6 4 . . 4 2 . . . 1 . . . . 2 3 . Melee 3 | . . . . . . 2 . . . 1 . . . . . . . Guns 10 | . 6 4 . . . . . . . . . . . . . . . Cannons 2 | . . . . . . . . . . . . . . . 2 . . AOE 7 | . . . . . 4 . . . . . . . . . . 3 . Classes Destroyed 12 | . 2 1 . 1 1 2 . . . 2 . . . . 2 1 . Tunneler 1 | . . . . . . . . . . . . . . . 1 . . Hauler 1 | . . . . . . . . . . 1 . . . . . . . Recycler 1 | . . . . . . . . . . . . . . . 1 . . Operator 4 | . . . . 1 . . . . . 1 1 . . . 1 . . Watcher 4 | . . . . . 1 . . . . . 1 . . . 1 1 . Swarmer 10 | . 3 . . . 4 . . . . . . . . . . 3 . Grunt 7 | . 3 3 . . . 1 . . . . . . . . . . . Brawler 1 | . . 1 . . . . . . . . . . . . . . . Researcher 5 | . . . . . . . . . . . . . . . . 2 3 Sentry 1 | . . . . . . . . . . 1 . . . . . . . Programmer 3 | . . . . . . 1 . . . . . . . . 2 . . Decomposer 2 | . . . . . . 2 . . . . . . . . . . . Best Kill Streak 4 | . 3 3 . 1 4 1 . . . 1 1 . . . 1 3 1 Combat Bots Only 4 | . 3 3 . . 4 1 . . . 1 . . . . 1 3 . Max Kills in Single Turn 3 | . 1 1 . 1 2 1 . . . 1 1 . . . 1 3 1 Gunslinging . | . . . . . . . . . . . . . . . . . . Exploded 3 | . . . . . 2 . . . . . . . . . . 3 . Melee 1 | . . . . . . 1 . . . 1 . . . . . . . Uniques/NPCs Destroyed . | . . . . . . . . . . . . . . . . . . Combat | -11 -10 -9 -9 -8 -7 -7 -7 -6 -6 -6 -5 -4 -3 -3 -2 -2 -2 -------- Run | Yrd Mat Mat Min Mat Fac Low Low Fac Was Fac Fac Fac Res DSF Res Qua Sec Hostile Shots Fired 968 | . 56 58 4 . 99 17 8 34 . 34 16 102 . 9 238 204 89 Missed 446 | . 21 27 3 . 53 3 5 15 . 12 8 59 . 3 119 91 27 Hits 522 | . 35 31 1 . 46 14 3 19 . 22 8 43 . 6 119 113 62 Melee 5 | . . 4 . . 1 . . . . . . . . . . . . Projectile 517 | . 35 27 1 . 45 14 3 19 . 22 8 43 . 6 119 113 62 Critical Strikes 20 | . . 2 . . . . . . . 1 . 3 . . 7 4 3 Part Disruptions 1 | . . . . . . . . . . . . . . . . . 1 Actively Blocked 1 | . . . . . . . . . . . . . . . . . 1 Damage Taken 10583 | . 368 426 18 . 845 224 43 367 . 423 154 887 . 56 2572 2536 1664 Core 3333 | . 99 74 18 . 265 125 14 229 . 134 . 627 . . 670 407 671 Absorbed by Shields . | . . . . . . . . . . . . . . . . . . Redirected to Core 12 | . . . . . . . . . . . . . . . . 12 . Redirected to Shielding 320 | . . . . . . . . . . . . . . . . 137 183 Ignored by Resistances 56 | . . . . . . . . . . . . . . 27 29 . . Regen/Repaired (Parts) 482 | . . . . . . . . . . 46 . . . . . 436 . Core Remaining (%) 75 | 100 60 . 77 100 . . 42 . . 57 100 45 . 100 . . . Volleys Fired 108 | . 19 19 . 5 2 . . . 45 . . . . . 11 5 2 Largest 2 | . 2 2 . 2 1 . . . 2 . . . . . 1 1 1 Hottest 120 | . 40 60 . 63 39 . . . 80 . . . . . 120 80 80 Shots Fired 183 | . 38 37 . 10 2 . . . 78 . . . . . 11 5 2 Gun 163 | . 38 37 . 10 . . . . 78 . . . . . . . . Cannon 11 | . . . . . . . . . . . . . . . 11 . . Launcher 9 | . . . . . 2 . . . . . . . . . . 5 2 Special . | . . . . . . . . . . . . . . . . . . Kinetic 68 | . 38 25 . 5 . . . . . . . . . . . . . Thermal 106 | . . 12 . 5 . . . . 78 . . . . . 11 . . Explosive 2 | . . . . . 2 . . . . . . . . . . . . Electromagnetic 7 | . . . . . . . . . . . . . . . . 5 2 Robot Hit Streak 21 | . 4 5 . 8 . . . . 21 . . . . . 8 3 5 Robot Miss Streak 4 | . 4 2 . 2 1 . . . 3 . . . . . 1 3 . Penetration Max . | . . . . . . . . . . . . . . . . . . Secondary Targets 2 | . 2 . . . . . . . . . . . . . . . . Max Gunslinging Chain 1 | . 1 . . . . . . . . . . . . . . . . Shots Hit Robots 164 | . 15 26 . 7 3 11 . . 67 6 2 . . . 14 10 3 Core Hits 87 | . 9 9 . 5 5 4 . . 16 3 2 . . . 7 21 6 Critical Kills . | . . . . . . . . . . . . . . . . . . Critical Parts Destroyed 1 | . . . . . 1 . . . . . . . . . . . . Critical Strikes 6 | . . . . . 1 3 . . . . . . . . 1 1 . Smash 1 | . . . . . 1 . . . . . . . . . . . . Sever 4 | . . . . . . 3 . . . . . . . . . 1 . Impale 1 | . . . . . . . . . . . . . . . 1 . . Melee Attacks 94 | . . . . . 17 16 2 . . 14 4 . . . 15 19 7 Impact 11 | . . . . . 9 . . . . . . . . . . . 2 Slashing 69 | . . . . . 8 16 2 . . 14 4 . . . 7 18 . Piercing 14 | . . . . . . . . . . . . . . . 8 1 5 Sneak Attacks 12 | . . . . . 1 2 . . . 4 1 . . . 2 . 2 Combat Hostiles 1 | . . . . . . . . . . 1 . . . . . . . Follow-up Attacks . | . . . . . . . . . . . . . . . . . . Damage Inflicted 5405 | . 141 315 . 90 369 539 . 11 969 478 210 . . . 783 969 531 Guns 1514 | . 140 315 . 90 . . . . 969 . . . . . . . . Cannons 428 | . . . . . . . . . . . . . . . 428 . . Explosions 841 | . . . . . 183 . . . . . . . . . . 515 143 Melee 2585 | . . . . . 161 539 . . . 478 210 . . . 355 454 388 Ramming 37 | . 1 . . . 25 . . 11 . . . . . . . . . Kinetic 391 | . 140 205 . 46 . . . . . . . . . . . . . Thermal 1636 | . . 110 . 44 . . . . 969 . . . . . 428 85 . Explosive 183 | . . . . . 183 . . . . . . . . . . . . Electromagnetic 573 | . . . . . . . . . . . . . . . . 430 143 Impact 161 | . . . . . 161 . . . . . . . . . . . . Slashing 1805 | . . . . . . 539 . . . 478 210 . . . 124 454 . Piercing 619 | . . . . . . . . . . . . . . . 231 . 388 Highest Corruption 9 | . . 2 2 . 5 6 1 . . . . . . . 6 9 9 Average Corruption 4 | . . 2 2 . 2 2 1 . . . . . . . 2 7 9 Corruption Purged 9 | . . . . . . 5 . . . . . . . . 4 . . Corruption Blocked . | . . . . . . . . . . . . . . . . . . Effects 39 | . . 2 . . 4 4 . . . . . . . . 4 17 8 Message Errors 8 | . . 2 . . . 1 . . . . . . . . . 5 . Matter Fused 11 | . . . . . 1 2 . . . . . . . . 1 3 4 Heat Flow Errors 8 | . . . . . 1 1 . . . . . . . . 3 3 . Energy Discharges 3 | . . . . . . . . . . . . . . . . 2 1 Parts Rejected 2 | . . . . . . . . . . . . . . . . 2 . Data Loss (minor) 4 | . . . . . 2 . . . . . . . . . . 1 1 Data Loss (major) 2 | . . . . . . . . . . . . . . . . . 2 Alerts 1 | . . . . . . . . . . . . . . . . 1 . Overload Shots . | . . . . . . . . . . . . . . . . . . Overflow Damage 315 | . . . . . 73 79 . . . 69 . . . . 45 49 . Projectiles 45 | . . . . . . . . . . . . . . . 45 . . Explosions 5 | . . . . . . . . . . . . . . . . 5 . Melee 265 | . . . . . 73 79 . . . 69 . . . . . 44 . Knockbacks . | . . . . . . . . . . . . . . . . . . Impact . | . . . . . . . . . . . . . . . . . . Kinetic . | . . . . . . . . . . . . . . . . . . Secondary . | . . . . . . . . . . . . . . . . . . Self-Inflicted Damage 493 | . . . . . 125 . . 5 . . . . . . . 299 64 Shots 27 | . . . . . 2 . . . . . . . . . . 19 6 Rammed 6 | . . . . . 5 . . 1 . . . . . . . . . Targets Rammed 7 | . 1 . . . 5 . . 1 . . . . . . . . . Kicked 1 | . 1 . . . . . . . . . . . . . . . . Crushed . | . . . . . . . . . . . . . . . . . . Highest Temperature 345 | . 24 6 . . 268 205 . . . . . 5 . 17 228 345 7 Average Temperature 53 | . 9 3 . . 81 109 . . . . . 5 . 17 61 127 3 Received Heat Transfer 1814 | . 180 150 9 . 84 81 . 171 . 132 36 155 . 36 180 528 72 Siege Activations . | . . . . . . . . . . . . . . . . . . Martial Activations . | . . . . . . . . . . . . . . . . . . Shielding Activations . | . . . . . . . . . . . . . . . . . . Robots Disrupted . | . . . . . . . . . . . . . . . . . . Combat Hostiles . | . . . . . . . . . . . . . . . . . . Robots Corrupted 1 | . . . . . 1 . . . . . . . . . . . . Combat Hostiles . | . . . . . . . . . . . . . . . . . . Parts Fried 8 | . . . . . . . . . . . . . . . . 7 1 Impact Corruptions 3 | . . . . . 3 . . . . . . . . . . . . Robots Melted . | . . . . . . . . . . . . . . . . . . Combat Hostiles . | . . . . . . . . . . . . . . . . . . Parts Melted . | . . . . . . . . . . . . . . . . . . Heat Transferred 3384 | . . 250 . 100 . . . . 2738 . . . . . 296 . . Parts Sabotaged . | . . . . . . . . . . . . . . . . . . Parts Stolen . | . . . . . . . . . . . . . . . . . . Parts Stripped . | . . . . . . . . . . . . . . . . . . Power Chain Reactions 1 | . . . . . . . . . . . . . . . . 1 . Alert | -11 -10 -9 -9 -8 -7 -7 -7 -6 -6 -6 -5 -4 -3 -3 -2 -2 -2 ------- Run | Yrd Mat Mat Min Mat Fac Low Low Fac Was Fac Fac Fac Res DSF Res Qua Sec Maximum Alert Level 2 | . . . . . . . . . . 2 1 . . . . . . Low Security (%) 84 | 100 100 100 100 100 100 . . 100 100 15 31 100 100 100 100 100 100 Level 1 10 | . . . . . . . . . . 46 68 . . . . . . Level 2 5 | . . . . . . . . . . 37 . . . . . . . Level 3 . | . . . . . . . . . . . . . . . . . . Level 4 . | . . . . . . . . . . . . . . . . . . Level 5 . | . . . . . . . . . . . . . . . . . . High Security . | . . . . . . . . . . . . . . . . . . Max Security . | . . . . . . . . . . . . . . . . . . Peak Influence 590 | . 145 136 51 49 179 . . 20 . 590 257 153 43 35 70 100 65 Initial 252 | . . 56 51 19 . . . . . . 252 102 43 20 19 . 3 Average 86 | . 59 81 51 26 60 . . 2 . 351 212 102 36 25 15 25 13 Influence Increases 3144 | . 255 235 . 45 373 55 . 45 . 1125 128 141 4 15 291 267 165 Destroy 0b10 Robot/C 940 | . 120 80 . . 80 40 . . . 420 . . . . 40 100 60 Destroy 0b10 Robot/NC 75 | . . . . 5 5 5 . . . 30 5 . . . 20 5 . Destroy Leader 204 | . 20 20 . . 12 10 . . . 116 2 . . . 12 12 . Allied During Kill 406 | . . . . . . . . . . 406 . . . . . . . Successful Hack 172 | . 10 . . 10 13 . . . . 57 57 21 4 . . . . Select Force Hacks 240 | . 30 30 . 30 60 . . . . 60 30 . . . . . . Disable Machine 195 | . . . . . 30 . . . . . . . . . . 90 75 Destroy Structure 102 | . . . . . 23 . . . . 36 4 . . . 24 15 . Partial Spotted 75 | . . 15 . . 15 . . . . . 15 . . . . 15 15 Lose Combat Pursuer 735 | . 75 90 . . 135 . . 45 . . 15 120 . 15 195 30 15 Influence Decreases 3144 | . 120 239 80 96 206 222 . 45 . 610 433 268 60 7 324 262 172 Entered New Map 694 | . . 79 80 32 . 63 . . . . 263 108 40 7 16 2 4 Time Decay 1570 | . 100 140 . 64 146 139 . 15 . 270 140 70 20 . 208 180 78 Lost Part 550 | . 10 20 . . 60 20 . 30 . 20 30 90 . . 100 80 90 Lost Ally 330 | . 10 . . . . . . . . 320 . . . . . . . Squads Dispatched 47 | . 1 4 . 1 6 . . 3 . 11 2 2 . 1 7 4 5 Investigation 17 | . 1 2 . 1 3 . . 3 . 3 2 . . . 1 1 . Extermination 8 | . . . . . 1 . . . . 1 . . . . 3 2 1 Reinforcement 17 | . . 2 . . 2 . . . . 5 . 2 . 1 3 1 1 Assault 2 | . . . . . . . . . . 2 . . . . . . . Garrison . | . . . . . . . . . . . . . . . . . . Intercept 3 | . . . . . . . . . . . . . . . . . 3 Searches Triggered . | . . . . . . . . . . . . . . . . . . Construction Impeded 1 | . . . . . . . . . . 1 . . . . . . . Haulers Reinforced 1 | . . . . . 1 . . . . . . . . . . . . Active Scanning Responses . | . . . . . . . . . . . . . . . . . . Cargo Convoy Interrupts . | . . . . . . . . . . . . . . . . . . Stealth | -11 -10 -9 -9 -8 -7 -7 -7 -6 -6 -6 -5 -4 -3 -3 -2 -2 -2 --------- Run | Yrd Mat Mat Min Mat Fac Low Low Fac Was Fac Fac Fac Res DSF Res Qua Sec Distress Signals 12 | . . 3 . . 1 . . 1 . 1 . . . . 2 4 . Communications Jammed 9 | . . . . . . . . . . . . . 1 . 8 . . Distress Signals 9 | . . . . . . . . . . . . . 1 . 8 . . Times Spotted 226 | . 15 31 2 5 19 2 6 8 . 24 10 17 1 2 36 34 14 Peak Tracking Total 20 | . 8 20 2 2 7 1 7 6 . 5 8 12 2 1 16 8 14 Tactical Retreats 30 | . 3 2 . . 4 . . 2 . . 1 3 . 1 6 7 1 Traps | -11 -10 -9 -9 -8 -7 -7 -7 -6 -6 -6 -5 -4 -3 -3 -2 -2 -2 ------- Run | Yrd Mat Mat Min Mat Fac Low Low Fac Was Fac Fac Fac Res DSF Res Qua Sec Traps Triggered 9 | . . 1 . . 2 . . 1 . 1 . . . 2 2 . . Indirectly . | . . . . . . . . . . . . . . . . . . Trap Hack Attempts . | . . . . . . . . . . . . . . . . . . Triggered . | . . . . . . . . . . . . . . . . . . Disarmed . | . . . . . . . . . . . . . . . . . . Reprogrammed . | . . . . . . . . . . . . . . . . . . Reused . | . . . . . . . . . . . . . . . . . . Traps Extracted . | . . . . . . . . . . . . . . . . . . Installed . | . . . . . . . . . . . . . . . . . . Triggered . | . . . . . . . . . . . . . . . . . . Machines | -11 -10 -9 -9 -8 -7 -7 -7 -6 -6 -6 -5 -4 -3 -3 -2 -2 -2 ---------- Run | Yrd Mat Mat Min Mat Fac Low Low Fac Was Fac Fac Fac Res DSF Res Qua Sec Machines Disabled 13 | . . . . . 2 . . . . . . . . . . 6 5 Max in Single Turn 1 | . . . . . 1 . . . . . . . . . . 1 1 Garrison Access 1 | . . . . . . . . . . 1 . . . . . . . Machines Repaired . | . . . . . . . . . . . . . . . . . . Machines Dismantled . | . . . . . . . . . . . . . . . . . . Machines Sabotaged . | . . . . . . . . . . . . . . . . . . Overloaded Fab Kills . | . . . . . . . . . . . . . . . . . . Hacking | -11 -10 -9 -9 -8 -7 -7 -7 -6 -6 -6 -5 -4 -3 -3 -2 -2 -2 --------- Run | Yrd Mat Mat Min Mat Fac Low Low Fac Was Fac Fac Fac Res DSF Res Qua Sec Machines Accessed 53 | . 3 2 . 3 7 . . 4 . 13 8 2 1 . 3 6 1 Terminals 35 | . 2 1 . 2 5 . . 1 . 9 4 2 1 . 1 6 1 Fabricators 3 | . . . . . . . . 1 . 1 1 . . . . . . Repair Stations 2 | . . . . . . . . 1 . . 1 . . . . . . Recycling Units 9 | . 1 1 . . . . . 1 . 3 1 . . . 2 . . Scanalyzers 4 | . . . . 1 2 . . . . . 1 . . . . . . Garrison Access . | . . . . . . . . . . . . . . . . . . Total Hacks 168 | . 7 3 . 4 20 . . 9 . 33 31 6 1 . 27 23 4 Successful 79 | . 4 1 . 3 8 . . 3 . 15 21 1 1 . 11 11 . Failed 89 | . 3 2 . 1 12 . . 6 . 18 10 5 . . 16 12 4 Catastrophic 27 | . . . . . 5 . . 3 . 5 4 2 . . 5 3 . Database Lockouts . | . . . . . . . . . . . . . . . . . . Manual 54 | . 4 1 . 1 7 . . 2 . 13 13 . . . 6 6 1 Terminals 117 | . 6 2 . 3 18 . . 2 . 23 15 6 1 . 14 23 4 Fabricators 9 | . . . . . . . . 2 . 4 3 . . . . . . Repair Stations 5 | . . . . . . . . 3 . . 2 . . . . . . Recycling Units 24 | . 1 1 . . . . . 2 . 6 1 . . . 13 . . Scanalyzers 13 | . . . . 1 2 . . . . . 10 . . . . . . Garrison Access . | . . . . . . . . . . . . . . . . . . Terminal Hacks 46 | . 2 . . 2 6 . . . . 11 7 1 1 . 5 11 . Record 5 | . 1 . . . . . . . . 1 . . . . . 3 . Part Schematic 1 | . . . . . . . . . . . 1 . . . . . . Prototype ID Bank 6 | . 1 . . 1 1 . . . . 1 1 . . . 1 . . Open DSF 2 | . . . . . . . . . . 1 . . 1 . . . . Level Access Points 3 | . . . . . 1 . . . . 1 1 . . . . . . Branch Access Points 5 | . . . . . 1 . . . . 1 1 . . . 1 1 . Emergency Access Points 2 | . . . . . . . . . . 1 . . . . . 1 . Machine Index 1 | . . . . . . . . . . . . . . . . 1 . Terminal Index 3 | . . . . . . . . . . . 1 . . . 1 1 . Fabricator Index 1 | . . . . . . . . . . . . . . . 1 . . Alert Level 2 | . . . . . . . . . . 1 1 . . . . . . Locate Traps 3 | . . . . . 1 . . . . 1 1 . . . . . . Dispatch Records 1 | . . . . 1 . . . . . . . . . . . . . Transport Status 1 | . . . . . . . . . . . . . . . . 1 . Recall Investigation 2 | . . . . . 1 . . . . . . . . . 1 . . Recall Extermination 1 | . . . . . . . . . . . . . . . . 1 . Registered Components 3 | . . . . . . . . . . 1 . 1 . . . 1 . Registered Prototypes 1 | . . . . . 1 . . . . . . . . . . . . Zone Layout 3 | . . . . . . . . . . 2 . . . . . 1 . Fabricator Hacks 6 | . . . . . . . . 2 . 2 2 . . . . . . Load Schematic 3 | . . . . . . . . 1 . 1 1 . . . . . . Build 3 | . . . . . . . . 1 . 1 1 . . . . . . Repair Station Hacks 1 | . . . . . . . . 1 . . . . . . . . . Refit 1 | . . . . . . . . 1 . . . . . . . . . Recycling Unit Hacks 6 | . . . . . . . . . . . . . . . 6 . . Recycle Component 1 | . . . . . . . . . . . . . . . 1 . . Process 1 | . . . . . . . . . . . . . . . 1 . . Report Inventory 1 | . . . . . . . . . . . . . . . 1 . . Retrieve Matter 2 | . . . . . . . . . . . . . . . 2 . . Retrieve Components 1 | . . . . . . . . . . . . . . . 1 . . Scanalyzer 10 | . . . . . . . . . . . 10 . . . . . . Insert Component 5 | . . . . . . . . . . . 5 . . . . . . Analyze 5 | . . . . . . . . . . . 5 . . . . . . Garrison Access Hacks . | . . . . . . . . . . . . . . . . . . Unauthorized Hacks 10 | . 2 1 . 1 2 . . . . 2 2 . . . . . . Terminals 2 | . 1 . . . . . . . . . 1 . . . . . . Assimilate 2 | . 1 . . . . . . . . . 1 . . . . . . Fabricators . | . . . . . . . . . . . . . . . . . . Repair Stations . | . . . . . . . . . . . . . . . . . . Recycling Units 5 | . 1 1 . . . . . . . 2 1 . . . . . . Tunnel 5 | . 1 1 . . . . . . . 2 1 . . . . . . Scanalyzers 3 | . . . . 1 2 . . . . . . . . . . . . Extract 3 | . . . . 1 2 . . . . . . . . . . . . Garrison Access . | . . . . . . . . . . . . . . . . . . Data Cores Recovered 1 | . . . . 1 . . . . . . . . . . . . . Used 1 | . . . . 1 . . . . . . . . . . . . . Hacking Detections 40 | . 2 1 . 2 5 . . 4 . 10 6 2 . . 3 4 1 Full Trace Events 7 | . . . . . 1 . . 3 . 1 1 . . . . 1 . Feedback Events . | . . . . . . . . . . . . . . . . . . Feedback Blocked . | . . . . . . . . . . . . . . . . . . Robot Schematics Acquired 4 | . . . . . . . . . . . . . . . . . 4 Robots Built . | . . . . . . . . . . . . . . . . . . Authchips . | . . . . . . . . . . . . . . . . . . Time . | . . . . . . . . . . . . . . . . . . Total Robot Build Rating . | . . . . . . . . . . . . . . . . . . Part Schematics Acquired 22 | . . . . 4 10 . . . . . 6 . . . . . 2 Parts Built 3 | . . . . . . . . 1 . 1 1 . . . . . . Authchips . | . . . . . . . . . . . . . . . . . . Time 145 | . . . . . . . . 73 . 36 36 . . . . . . Total Part Build Rating 9 | . . . . . . . . 3 . 3 3 . . . . . . Parts Repaired . | . . . . . . . . . . . . . . . . . . Time . | . . . . . . . . . . . . . . . . . . Parts Recycled 1 | . . . . . . . . . . . . . . . 1 . . Recycled Matter 40 | . . . . . . . . . . . . . . . 40 . . Retrieved Matter 40 | . . . . . . . . . . . . . . . 40 . . Retrieved Components 3 | . . . . . . . . . . . . . . . 3 . . Parts Scanalyzed 5 | . . . . . . . . . . . 5 . . . . . . Part Schematics Acquired 5 | . . . . . . . . . . . 5 . . . . . . Parts Damaged 2 | . . . . . . . . . . . 2 . . . . . . Bothacking | -11 -10 -9 -9 -8 -7 -7 -7 -6 -6 -6 -5 -4 -3 -3 -2 -2 -2 ------------ Run | Yrd Mat Mat Min Mat Fac Low Low Fac Was Fac Fac Fac Res DSF Res Qua Sec Used RIF Installer . | . . . . . . . . . . . . . . . . . . Robots Hacked . | . . . . . . . . . . . . . . . . . . Non-combat . | . . . . . . . . . . . . . . . . . . Combat . | . . . . . . . . . . . . . . . . . . Robot Hacks Applied . | . . . . . . . . . . . . . . . . . . Relay Couplers Released 2 | . . . . . . . . . . 2 . . . . . . . Machine Destruction 2 | . . . . . . . . . . 2 . . . . . . . Fabnet Peak Effective % . | . . . . . . . . . . . . . . . . . . Robots Rewired . | . . . . . . . . . . . . . . . . . . Allies Hacked . | . . . . . . . . . . . . . . . . . . Hacks Repelled 3 | . . . . . . . . . . . . . . . 3 . . Allies | -11 -10 -9 -9 -8 -7 -7 -7 -6 -6 -6 -5 -4 -3 -3 -2 -2 -2 -------- Run | Yrd Mat Mat Min Mat Fac Low Low Fac Was Fac Fac Fac Res DSF Res Qua Sec Total Allies 22 | . 1 . . . . . . . 20 . 1 . . . . . . Largest Group 20 | . 1 . . . . . . . 20 20 . . . . . . . Highest-Rated Group 793 | . 10 . . . . . . . 793 792 . . . . . . . Highest-Rated Ally 50 | . 10 . . . . . . . 50 50 . . . . . . . Total Orders . | . . . . . . . . . . . . . . . . . . Ally Attacks 148 | . . . . . . . . . . 148 . . . . . . . Total Damage 3900 | . . . . . . . . . . 3900 . . . . . . . Kills 25 | . . . . . . . . . . 25 . . . . . . . Allies Corrupted 1 | . . . . . . . . . . 1 . . . . . . . Allies Melted 6 | . . . . . . . . . . 5 . . . . 1 . . Intel | -11 -10 -9 -9 -8 -7 -7 -7 -6 -6 -6 -5 -4 -3 -3 -2 -2 -2 ------- Run | Yrd Mat Mat Min Mat Fac Low Low Fac Was Fac Fac Fac Res DSF Res Qua Sec Active Infowar (turns) 3257 | . 261 216 . 40 418 315 77 1 . 414 299 83 10 40 566 291 226 Optics 264 | . . . . . . . . . . . . . . . . 38 226 Sensors 1473 | . . . . . 35 315 77 . . 414 299 83 . . . 250 . Terrain 479 | . 261 216 . . . . . . . . . . . . . . 2 Seismic 468 | . . . . 40 418 10 . . . . . . . . . . . Cloaking 590 | . . . . . . . . . . . . . . . 256 208 126 Jamming 404 | . . . . . . . . . . . 1 . 10 40 353 . . ECM 170 | . . . . 1 . . . 1 . . . . . . . 168 . Robot Analysis Total . | . . . . . . . . . . . . . . . . . . Derelict Logs Recovered 3 | . . . 1 . . 2 . . . . . . . . . . . Drone Launches . | . . . . . . . . . . . . . . . . . . Drone Recoveries . | . . . . . . . . . . . . . . . . . . Exploration | -11 -10 -9 -9 -8 -7 -7 -7 -6 -6 -6 -5 -4 -3 -3 -2 -2 -2 ------------- Run | Yrd Mat Mat Min Mat Fac Low Low Fac Was Fac Fac Fac Res DSF Res Qua Sec Turns Passed 4848 | 80 270 297 14 145 418 315 82 182 562 591 299 150 43 40 637 497 226 Spaces Moved 5912 | 50 170 198 40 226 679 415 128 214 335 701 402 264 31 61 1033 623 342 Core 128 | 25 . . . . . . . 19 8 . . 46 17 . . . 13 Treads . | . . . . . . . . . . . . . . . . . . Legs 355 | 25 170 157 . . . . . . 3 . . . . . . . . Wheels . | . . . . . . . . . . . . . . . . . . Hover 3388 | . . . . 148 679 415 128 195 324 549 . . 14 61 536 338 1 Flight 2031 | . . 41 40 78 . . . . . 152 402 218 . . 497 285 318 Fastest Speed 29 | 50 120 34 34 34 44 56 60 50 50 40 37 40 48 44 35 39 29 Average Speed 55 | 129 120 102 34 43 48 57 60 67 89 63 37 42 49 45 43 48 40 Slowest Speed 250 | 250 120 120 34 60 60 120 60 240 120 131 40 100 60 48 119 60 180 Overloaded Moves . | . . . . . . . . . . . . . . . . . . Propulsion Burnouts . | . . . . . . . . . . . . . . . . . . Robots Hopped 20 | . . 2 . . . . . . . 1 2 5 . . 5 . 5 Potential Cave-ins . | . . . . . . . . . . . . . . . . . . Cave-ins Triggered . | . . . . . . . . . . . . . . . . . . Teleports 1 | . . . . . . . . . . . . . . . . 1 . Spacefolds 4 | . . . . . . . . . . . . . . . . . 4 Exploration Rate (%) 29 | 5 46 29 14 25 27 52 17 6 95 24 10 8 1 70 32 52 17 Regions Visited 17 Branch Regions 5 Pre-discovered Areas 5 | . 1 1 . . . . . . . 2 1 . . . . . . Known Exits Taken 8 | . . . . 1 1 1 1 . . 1 1 . 1 . 1 . . Unknown Exits Taken 6 | 1 1 1 1 . . . . . . . . 1 . . . 1 . Scrap Searched 1 | . . . . . . 1 . . . . . . . . . . . Spaces Dug 29 | . . . . . 10 . . . . 7 2 . . . 5 5 . Terrain Destroyed 48 | . . . . . 26 . . . . 7 2 . . . 8 5 . Melee 29 | . . . . . 10 . . . . 7 2 . . . 5 5 . Projectile 3 | . . . . . . . . . . . . . . . 3 . . AOE 16 | . . . . . 16 . . . . . . . . . . . . Terrain Rammed . | . . . . . . . . . . . . . . . . . . Walls Destroyed . | . . . . . . . . . . . . . . . . . . Machines Disabled . | . . . . . . . . . . . . . . . . . . Actions | -11 -10 -9 -9 -8 -7 -7 -7 -6 -6 -6 -5 -4 -3 -3 -2 -2 -2 --------- Run | Yrd Mat Mat Min Mat Fac Low Low Fac Was Fac Fac Fac Res DSF Res Qua Sec Total 7073 | 66 201 256 39 261 743 462 129 252 522 823 537 294 55 70 1179 779 405 Wait 566 | . 2 15 . 5 3 25 . 26 124 82 117 29 14 . 52 67 5 Move 5852 | 49 169 193 39 225 678 414 127 214 334 698 398 255 30 60 1022 622 325 Hop 17 | . . 2 . . . . . . . 1 1 3 . . 5 . 5 Pick Up 115 | 9 8 6 . 7 5 1 . 2 3 3 6 2 2 3 21 20 17 Fast Attach 48 | 1 . 1 . 5 6 1 . 1 2 5 2 3 4 4 11 2 . Attach 91 | 5 2 5 . . . 2 . 2 . 3 3 1 4 2 13 24 25 Detach 27 | . . . . . 1 1 . 1 2 3 . . . . 4 8 7 Swap 50 | . . 5 . 6 5 1 . 3 1 4 3 . 1 . 8 5 8 Drop 81 | 2 . 10 . 8 10 1 . 2 6 10 3 1 . 1 17 6 4 Fire 108 | . 19 19 . 5 2 . . . 45 . . . . . 11 5 2 Melee 92 | . . . . . 15 16 2 . . 14 4 . . . 15 19 7 Ram 6 | . . . . . 5 . . 1 . . . . . . . . . Kick 1 | . 1 . . . . . . . . . . . . . . . . Crush . | . . . . . . . . . . . . . . . . . . Escape Stasis 14 | . . . . . 13 . . . . . . . . . . 1 . Rewire 5 | . . . . . . . . . 5 . . . . . . . . Trap . | . . . . . . . . . . . . . . . . . . Miscellaneous . | . . . . . . . . . . . . . . . . . . Route ------- -11/Scrapyard -10/Materials -9/Materials -9/Mines (discovered 2 exits: *Mat x2) -8/Materials (discovered 2 exits: *Fac x2) -7/Factory (discovered 6 exits: *Fac x4 / *Low x2) -7/Lower Caves -7/Lower Caves -6/Factory -6/Waste -6/Factory (discovered 6 exits: *Fac x4 / Low x2) -5/Factory (discovered 6 exits: *Fac x4 / Upp x2) -4/Factory (discovered 2 exits: *Res / *Upp) -3/Research -3/DSF -2/Research (discovered 3 exits: [*Acc] / *Qua x2) -2/Quarantine (discovered 2 exits: *Sec / [*Frg]) -2/Section 7 (discovered 1 exit: [*Acc]) History --------- Turn | Location | Event 8 | -11/Scrapyard | Discovered new exit (range 16) 81 | -11/Scrapyard | Entered Materials 313 | -10/Materials | Build established: Mutant 324 | -10/Materials | Discovered new exit (range 16) 351 | -10/Materials | Entered another Materials area 351 | -9/Materials | Evolved 2 slots: Propulsion x1, Utility x1 644 | -9/Materials | Discovered new exit (range 8) 648 | -9/Materials | Entered Mines 652 | -9/Mines | Learned 2 Materials zone layouts 655 | -9/Mines | Discovered new exit (range 6) 658 | -9/Mines | Discovered new exit (range 10) 662 | -9/Mines | Entered Materials 662 | -8/Materials | Evolved 2 slots: Propulsion x1, Utility x1 663 | -8/Materials | Identified exit to Factory 771 | -8/Materials | Discovered exit to Factory (range 16) 807 | -8/Materials | Entered Factory 807 | -7/Factory | Evolved 2 slots: Propulsion x1, Utility x1 1026 | -7/Factory | Identified exit to Factory 1028 | -7/Factory | Identified exit to Lower Caves 1186 | -7/Factory | Lost 3 parts (3n) 1225 | -7/Factory | Entered Lower Caves 1294 | -7/Lower Caves | Learned Factory emergency access door positions 1452 | -7/Lower Caves | Core integrity fell below 50% 1467 | -7/Lower Caves | Learned 4 Factory zone layouts 1533 | -7/Lower Caves | Encountered a Warlord checkpoint 1534 | -7/Lower Caves | Discovered new exit (range 8) 1538 | -7/Lower Caves | Identified exit to Lower Caves 1540 | -7/Lower Caves | Entered another Lower Caves area 1541 | -7/Lower Caves | Discovered exit to Factory (range 11) 1622 | -7/Lower Caves | Entered Factory 1622 | -6/Factory | Evolved 2 slots: Propulsion x1, Utility x1 1623 | -6/Factory | Identified exit to Factory 1758 | -6/Factory | Fabricated Hacking Suite (x1) 1804 | -6/Factory | Sucked down chute 1804 | -6/Factory | Entered Waste 1805 | -6/Waste | Joined by Warlord forces that had cleared the area 2015 | -6/Waste | Found Prototype Launcher 2016 | -6/Waste | Identified Mni. Smartbomb Launcher 2060 | -6/Waste | Discovered new exit (range 16) 2280 | -6/Waste | Identified exit to Factory 2366 | -6/Waste | Entered Factory 2366 | -6/Factory | Accompanied by 20 allies 2391 | -6/Factory | Identified exit to Lower Caves 2693 | -6/Factory | Spotted B-75 Beast 2762 | -6/Factory | Lost 4 allies 2904 | -6/Factory | Fabricated Hacking Suite (x1) 2957 | -6/Factory | Entered another Factory area 2957 | -5/Factory | Evolved 2 slots: Utility x2 2988 | -5/Factory | Lost 11 allies 3013 | -5/Factory | Fabricated Hacking Suite (x1) 3187 | -5/Factory | Identified exit to Upper Caves 3187 | -5/Factory | Identified exit to Factory 3207 | -5/Factory | Build established: Hacker-Gladiator 3256 | -5/Factory | Entered another Factory area 3256 | -4/Factory | Evolved 2 slots: Power x1, Utility x1 3285 | -4/Factory | Lost 3 parts (2n1w) 3377 | -4/Factory | Spotted B-86 Titan 3386 | -4/Factory | Discovered new exit (range 14) 3396 | -4/Factory | Discovered new exit (range 12) 3396 | -4/Factory | Identified exit to Upper Caves 3406 | -4/Factory | Core integrity fell below 50% 3406 | -4/Factory | Entered Research 3406 | -3/Research | Evolved 2 slots: Propulsion x1, Utility x1 3436 | -3/Research | Lost 8 parts (1p2n5u) 3449 | -3/Research | Identified exit to DSF 3449 | -3/Research | Entered DSF 3466 | -3/DSF | Additional patrols routed to DSF 3472 | -3/DSF | Found Prototype Hackware 3472 | -3/DSF | Identified Exp. System Shield 3474 | -3/DSF | Found Exp. System Shield 3476 | -3/DSF | Found Exp. System Shield 3478 | -3/DSF | Found Exp. System Shield 3482 | -3/DSF | Discovered new exit (range 15) 3489 | -3/DSF | Entered Research 3489 | -2/Research | Evolved 2 slots: Propulsion x1, Utility x1 3524 | -2/Research | Found Quantum Capacitor 3543 | -2/Research | Found Gamma Bomb Array 3635 | -2/Research | Identified exit to Quarantine 3781 | -2/Research | Found Quantum Capacitor 3787 | -2/Research | Lost 3 parts (1p1n1u) 3812 | -2/Research | Build established: Wizard-Mutant 3915 | -2/Research | Spotted B-90 Cyclops 3974 | -2/Research | Lost 3 parts (3u) 4018 | -2/Research | Allied Derelicts emerged from ambush trap array 4077 | -2/Research | Lost 3 allies 4086 | -2/Research | Discovered new exit (range 15) 4107 | -2/Research | Spotted B-90 Cyclops 4111 | -2/Research | Spotted B-90 Cyclops 4126 | -2/Research | Entered Quarantine 4155 | -2/Quarantine | Lost 7 parts (2p2n3u) 4205 | -2/Quarantine | Found Alien Slashing Weapon 4206 | -2/Quarantine | Identified Sigix Broadsword 4257 | -2/Quarantine | Core integrity fell below 50% 4333 | -2/Quarantine | Found Alien Artifact 4341 | -2/Quarantine | Identified Subatomic Replicator 4343 | -2/Quarantine | Found Alien Artifact 4343 | -2/Quarantine | Identified Transdimensional Reconstructor 4343 | -2/Quarantine | Warped through subspace 4357 | -2/Quarantine | Found Alien Reactor 4369 | -2/Quarantine | Identified Matter Drive 4392 | -2/Quarantine | Build established: Hacker-Mutant 4503 | -2/Quarantine | Scanned by Researcher 4517 | -2/Quarantine | Found Alien Artifact 4519 | -2/Quarantine | Identified Phase Armor 4565 | -2/Quarantine | Lost 8 parts (2p2n3u1w) 4583 | -2/Quarantine | Spotted Fortress 4621 | -2/Quarantine | Discovered new exit (range 6) 4621 | -2/Quarantine | Discovered new exit (range 7) 4623 | -2/Quarantine | Lost 3 parts (1n2u) 4623 | -2/Quarantine | Entered Section 7 4654 | -2/Section 7 | Spotted S7 Guard 4662 | -2/Section 7 | Found Alien Artifact 4665 | -2/Section 7 | Identified Core Membrane 4665 | -2/Section 7 | Installed Core Membrane, gained immunity to corruption 4678 | -2/Section 7 | Spotted S7 Guard 4687 | -2/Section 7 | Scanned by Researcher 4691 | -2/Section 7 | Core integrity fell below 20% 4697 | -2/Section 7 | Found Alien Artifact 4698 | -2/Section 7 | Identified Integrated Thermoelectric Network 4698 | -2/Section 7 | Installed Integrated Thermoelectric Network, gained heat-energy exchange potential 4731 | -2/Section 7 | Spotted B-90 Cyclops 4754 | -2/Section 7 | Found Alien Artifact 4755 | -2/Section 7 | Identified Spacefold Activator 4758 | -2/Section 7 | Lost 5 parts (1n4u) 4803 | -2/Section 7 | Spotted S7 Guard 4808 | -2/Section 7 | Found Alien Artifact 4810 | -2/Section 7 | Identified Core Regenerator 4810 | -2/Section 7 | Used Core Regenerator, restored core integrity (+362) 4812 | -2/Section 7 | Spotted S7 Guard 4821 | -2/Section 7 | Found Alien Artifact 4822 | -2/Section 7 | Identified Core Physics Calibrator 4829 | -2/Section 7 | Intercept squad dispatched 4833 | -2/Section 7 | Spotted Tracker 4833 | -2/Section 7 | Spotted Combat Programmer 4833 | -2/Section 7 | Discovered new exit (range 19) 4835 | -2/Section 7 | Spotted Tracker 4846 | -2/Section 7 | Spotted Combat Programmer 4849 | -2/Section 7 | Core destroyed Last Messages --------------- disabled. 04836_ Q-thruster temporarily disabled. 04836_ Penetrated by EMDS Slug. 04836_ Imp. Antigrav System destroyed. 04837_ Q-thruster destroyed. 04838_ Spacefolded through Wall. 04840_ Penetrated by Slug. 04840_ Slug penetrates Wall. 04840_ Imp. Cloaking Device destroyed. 04840_ Spacefolded through Wall. 04841_ Dropped Sml. Storage Unit. 04841_ Dropped Lgt. Neutrino Core. 04844_ Penetrated by EMDS Slug. 04844_ Cmb. Antigrav System destroyed. 04844_ Core Membrane filtered system corruption (1). 04846_ EMDS Slug penetrates Wall. 04846_ Q-thruster destroyed. 04848_ System corrupted: Component data lost. 04849_ Spacefolded through Wall. Map ----- +----------------------------------------------------+ | "#????##########?????????????????????????????????? | | "#????# [ ??????????????????????????????????? | | "#????# ??????????????????????????????????? | | !#????# ???????????????????????????????????? | | ####### """""""??????????????????????????????????? | | %! # """"""" #????????????????????????????????? | | # """"""" #????????????????????????????????? | | # #????????????????????????????????? | | + #????????????????????????????????? | | ## ###########????????????????????????????????? | | # #??????????????????????????????????????????? | | # #??????????????????????????????????????????? | | # #??????????????????????????????????????????? | | # #??????????????????????????????????????????? | | # #??????????????????????????????????????????? | | "# #??????????????????????????????????????????? | | ## #??????????????????????????????????????????? | | ?# #??????????????????????????????????????????? | | ?# ######+######+########?????????????????????? | | ## #?????????????????????? | | #?????????????????????? | | ## #?????????????????????? | | ?# #?????????????????????? | | #####/######/########## < #?????????????????????? | | * #!/ #????# #?????????????????????? | | !! #/* #????# @ #?????????????????????? | | !! #* !! #????######?????????????????????? | | ! # !! #?????#?????????????????????????? | | # #############???????????????????? | | # ! / +???????????????????? | | "" """ # #### #???????????????????? | | ""T""" # #??# #???????????????????? | | ##################??# ????????????????? | | ????????????????????# ????????????? | | ????????????????????# ??????????? | | ?????????????????????##################??????????? | | ?????????????????????????????????????????????????? | | ?????????????????????????????????????????????????? | | ?????????????????????????????????????????????????? | | | | | | | | | | | | | | | | | | | | | | | +----------------------------------------------------+ Best States ------------- Heat Dissipation 139 Energy Generation 57 Energy Capacity 550 Matter Stores 300 Matter Capacity 300 Sight Range 20 Robot Scan Range 16 Terrain Scan Range 14 Terrain Scan Density 210 ECM Strength 1 Jamming Range 14 Cloak Strength 6 Power Amplification 30 Additional Mass Support 16 Armor Coverage 225 Resistance: TH 30 Propulsion Shielding 66 Evasion (%) 64 Melee Accuracy 16 Core Analysis 6 Armor Integrity Analysis 30 Salvage Targeting 1 Offensive Hacking 22 Defensive Hacking 84 Item Schematics ----------------- Imp. Signal Interpreter | -8/Materials | Extracted Hcp. Matter Pod | -8/Materials | Extracted Reaction Control System | -8/Materials | Extracted Cesium-ion Thruster | -8/Materials | Extracted Hcp. Storage Unit | -7/Factory | Extracted Assault Cannon | -7/Factory | Extracted Gatling Laser | -7/Factory | Extracted Prc. Shock Rifle | -7/Factory | Extracted Thermal Generator | -7/Factory | Extracted Xenon Bombardment Thruster | -7/Factory | Extracted Com. Wheel | -7/Factory | Extracted Lightning Gun | -7/Factory | Extracted Pulse Rifle | -7/Factory | Extracted Hacking Suite | -7/Factory | Extracted Mni. Smartbomb Launcher | -5/Factory | Scanalyzed Adv. ECM Suite | -5/Factory | Scanalyzed Lgt. Fission Core | -5/Factory | Scanalyzed Imp. Cooling System | -5/Factory | Scanalyzed Antimatter Reactor | -5/Factory | Scanalyzed Adv. Hacking Suite | -5/Factory | Hacked Enh. Gamma Bomb Array | -2/Section 7 | Archive Hvy. Neutron Cannon | -2/Section 7 | Archive Robot Schematics ------------------ S-43 Plague | -2/Section 7 | Archive G-67 Veteran | -2/Section 7 | Archive A-15 Conveyor | -2/Section 7 | Archive C-55 Analyst | -2/Section 7 | Archive Fabricated ------------ Hacking Suite | x1 | -6/Factory Hacking Suite | x1 | -6/Factory Hacking Suite | x1 | -5/Factory Repaired ---------- Nothing Alien Tech Used ----------------- Sigix Broadsword Subatomic Replicator Transdimensional Reconstructor Matter Drive Phase Armor Core Membrane Integrated Thermoelectric Network Spacefold Activator Core Regenerator Core Physics Calibrator Achievements -------------- Signature Confirmed Challenges ------------ None Game ------ Seed AntimatterDiametricDrillbomb Manual? 0 Play Time 01:49:44 Cumulative 83.7 hours Start 2025.08.28 @ 17:13:33 End 2025.08.28 @ 19:06:22 Sessions 1 Manual Loads 0 Difficulty Rogue Special Mode None Game No. 62 Rogue 62 Adventurer 0 Explorer 0 Win Type - Total 2 Types 1/0/0/1/0/0/0/0/0/0 Lore% 62 Gallery% 55 Achievement% 47 Wizard Run 0 Options --------- Layout 1 ASCII 0 Keyboard 0 Movement Mouse Keybinds 0 Fullscreen 1 Font 24/Smallcaps Map View 50x35 Zoom Use 0% Tactical HUD 1 Map Filters NONE Filters NONE Steam 1 RUN: 0119dacc-dd4a-41d2-9ea1-ee80305bf542